[Event "*** Titled Tuesday Blitz"]
[Site "Chess.com"]
[Date "2020.05.12"]
[Round "3"]
[White "grandemestregringo"]
[Black "SamuelGhimpu2003"]
[Result "0-1"]
[WhiteElo "2456"]
[BlackElo "2711"]
[TimeControl "180+1"]
[EndTime "10:27:19 PDT"]
[Termination "SamuelGhimpu2003 won by resignation"]

1. d4 {[%clk 0:03:00.9]} 1... Nf6 {[%clk 0:02:57.2]} 2. c4 {[%clk 0:03:00.8]}
2... g6 {[%clk 0:02:57]} 3. Nf3 {[%clk 0:03:00.7]} 3... Bg7 {[%clk 0:02:56.8]}
4. Nc3 {[%clk 0:03:00.5]} 4... d5 {[%clk 0:02:56.9]} 5. cxd5 {[%clk 0:02:53.1]}
5... Nxd5 {[%clk 0:02:57.8]} 6. Bd2 {[%clk 0:02:53.3]} 6... O-O {[%clk
0:02:51.4]} 7. e4 {[%clk 0:02:52.9]} 7... Nb6 {[%clk 0:02:50.8]} 8. Be2 {[%clk
0:02:49.5]} 8... Bg4 {[%clk 0:02:42.3]} 9. Be3 {[%clk 0:02:45.8]} 9... Bxf3
{[%clk 0:02:42.1]} 10. gxf3 {[%clk 0:02:42.6]} 10... e5 {[%clk 0:02:43]} 11.
dxe5 {[%clk 0:02:38.9]} 11... Nc6 {[%clk 0:02:39.5]} 12. Qxd8 {[%clk 0:02:38.2]}
12... Raxd8 {[%clk 0:02:38.7]} 13. f4 {[%clk 0:02:35.5]} 13... g5 {[%clk
0:02:30.2]} 14. fxg5 {[%clk 0:02:26.7]} 14... Nxe5 {[%clk 0:02:28.2]} 15. f4
{[%clk 0:02:12.7]} 15... Nec4 {[%clk 0:02:25.6]} 16. Bxb6 {[%clk 0:02:11.9]}
16... Nxb2 {[%clk 0:02:10.1]} 17. Ba5 {[%clk 0:01:53.4]} 17... b6 {[%clk
0:02:06.7]} 18. e5 {[%clk 0:01:24.6]} 18... bxa5 {[%clk 0:02:02.9]} 19. Kf2
{[%clk 0:01:24.7]} 19... Rd4 {[%clk 0:01:56.3]} 20. Ke3 {[%clk 0:01:22.4]} 20...
Rfd8 {[%clk 0:01:56.7]} 21. Rab1 {[%clk 0:01:16.8]} 21... Nd3 {[%clk 0:01:40.6]}
22. Rhd1 {[%clk 0:01:09.5]} 22... Nb4 {[%clk 0:01:39.7]} 23. Rb2 {[%clk
0:00:20.6]} 23... c5 {[%clk 0:01:34.1]} 24. a3 {[%clk 0:00:18.6]} 24... Nc6
{[%clk 0:01:29.2]} 25. Bf3 {[%clk 0:00:18.2]} 25... Ne7 {[%clk 0:01:26.2]} 26.
Be4 {[%clk 0:00:17.1]} 26... Rxd1 {[%clk 0:01:24.4]} 27. Nxd1 {[%clk 0:00:16.8]}
27... Rxd1 {[%clk 0:01:25.1]} 28. Rb8+ {[%clk 0:00:17.2]} 28... Bf8 {[%clk
0:01:24.6]} 29. f5 {[%clk 0:00:14.7]} 29... Rg1 {[%clk 0:01:15.7]} 30. h4 {[%clk
0:00:14.1]} 30... Rf1 {[%clk 0:01:12.9]} 31. f6 {[%clk 0:00:12.1]} 31... Ng6
{[%clk 0:01:13.7]} 32. Re8 {[%clk 0:00:06.2]} 32... Re1+ {[%clk 0:01:10.8]} 33.
Kd3 {[%clk 0:00:04.4]} 33... Nf4+ {[%clk 0:01:07.2]} 0-1

[Event "*** Titled Tuesday Blitz"]
[Site "Chess.com"]
[Date "2020.05.12"]
[Round "3"]
[White "Bubar"]
[Black "AthanasiusLefebvre"]
[Result "1-0"]
[WhiteElo "2332"]
[BlackElo "2076"]
[TimeControl "180+1"]
[EndTime "10:27:20 PDT"]
[Termination "Bubar won by resignation"]

1. d4 {[%clk 0:03:00.9]} 1... d6 {[%clk 0:02:59.2]} 2. Nf3 {[%clk 0:03:00.5]}
2... Nf6 {[%clk 0:02:57.4]} 3. c4 {[%clk 0:02:59.8]} 3... g6 {[%clk 0:02:58.3]}
4. Nc3 {[%clk 0:02:59.1]} 4... Bg7 {[%clk 0:02:58.7]} 5. Bg5 {[%clk 0:02:58.8]}
5... O-O {[%clk 0:02:58.9]} 6. e3 {[%clk 0:02:58.3]} 6... c5 {[%clk 0:02:54.5]}
7. Be2 {[%clk 0:02:57.7]} 7... cxd4 {[%clk 0:02:53]} 8. exd4 {[%clk 0:02:57.2]}
8... Nc6 {[%clk 0:02:53.5]} 9. O-O {[%clk 0:02:56.5]} 9... e5 {[%clk 0:02:48.5]}
10. dxe5 {[%clk 0:02:54.4]} 10... dxe5 {[%clk 0:02:48.2]} 11. Nd5 {[%clk
0:02:53.8]} 11... Be6 {[%clk 0:02:40.3]} 12. Bxf6 {[%clk 0:02:49.5]} 12... Bxf6
{[%clk 0:02:38.9]} 13. Qb3 {[%clk 0:02:46.9]} 13... Nd4 {[%clk 0:02:19.5]} 14.
Nxd4 {[%clk 0:02:43.8]} 14... exd4 {[%clk 0:02:17.8]} 15. Bf3 {[%clk 0:02:43.7]}
15... Bxd5 {[%clk 0:02:15.4]} 16. Bxd5 {[%clk 0:02:42.7]} 16... Rb8 {[%clk
0:02:14]} 17. Rad1 {[%clk 0:02:40.4]} 17... Qd6 {[%clk 0:02:12]} 18. Rd3 {[%clk
0:02:37.2]} 18... b6 {[%clk 0:02:11.5]} 19. Rf3 {[%clk 0:02:33.7]} 19... Kg7
{[%clk 0:02:05.4]} 20. Qd3 {[%clk 0:02:33.2]} 20... b5 {[%clk 0:01:54.5]} 21. b3
{[%clk 0:02:32.2]} 21... bxc4 {[%clk 0:01:52.4]} 22. Bxc4 {[%clk 0:02:28.2]}
22... Rb7 {[%clk 0:01:46.5]} 23. g3 {[%clk 0:02:27.8]} 23... Re7 {[%clk
0:01:45.4]} 24. Kg2 {[%clk 0:02:27.4]} 24... h5 {[%clk 0:01:44.4]} 25. h4 {[%clk
0:02:27.6]} 25... Re5 {[%clk 0:01:40.1]} 26. Rd1 {[%clk 0:02:26.1]} 26... Ra5
{[%clk 0:01:38.6]} 27. a4 {[%clk 0:02:23.8]} 27... Re8 {[%clk 0:01:24.7]} 28.
Bb5 {[%clk 0:02:17.6]} 28... Re7 {[%clk 0:01:23.3]} 29. Rc1 {[%clk 0:02:14.6]}
29... a6 {[%clk 0:01:15.8]} 30. Rc6 {[%clk 0:02:13.5]} 30... Qd5 {[%clk
0:01:09.8]} 31. Rxa6 {[%clk 0:02:00.7]} 31... Rxa6 {[%clk 0:01:07.4]} 32. Bxa6
{[%clk 0:02:01.2]} 32... Re1 {[%clk 0:01:01.2]} 33. Bc4 {[%clk 0:01:59.9]} 33...
Qc6 {[%clk 0:01:00.3]} 34. a5 {[%clk 0:01:54.9]} 34... Rc1 {[%clk 0:00:58.1]}
35. a6 {[%clk 0:01:54.1]} 35... Rc3 {[%clk 0:00:57.6]} 36. Qe2 {[%clk
0:01:44.2]} 36... d3 {[%clk 0:00:44.2]} 37. Bxd3 {[%clk 0:01:36.8]} 37... Rxb3
{[%clk 0:00:42.5]} 38. a7 {[%clk 0:01:34.2]} 38... Rb2 {[%clk 0:00:09.6]} 39.
Qe4 {[%clk 0:01:25.5]} 39... Qb6 {[%clk 0:00:07.3]} 40. a8=Q {[%clk 0:01:22.5]}
1-0

[Event "*** Titled Tuesday Blitz"]
[Site "Chess.com"]
[Date "2020.05.12"]
[Round "3"]
[White "mbachez"]
[Black "GoValya"]
[Result "1-0"]
[WhiteElo "2478"]
[BlackElo "2175"]
[TimeControl "180+1"]
[EndTime "10:27:21 PDT"]
[Termination "mbachez won by resignation"]

1. e4 {[%clk 0:03:00.9]} 1... e6 {[%clk 0:02:58.3]} 2. d4 {[%clk 0:03:00.4]}
2... d5 {[%clk 0:02:58.5]} 3. Bd3 {[%clk 0:03:00.6]} 3... Be7 {[%clk 0:02:56.1]}
4. e5 {[%clk 0:02:52.4]} 4... c5 {[%clk 0:02:55]} 5. c3 {[%clk 0:02:52.5]} 5...
Nc6 {[%clk 0:02:54.9]} 6. Nf3 {[%clk 0:02:52.6]} 6... Nh6 {[%clk 0:02:51.9]} 7.
O-O {[%clk 0:02:28.1]} 7... cxd4 {[%clk 0:02:40.6]} 8. Bxh6 {[%clk 0:02:21.9]}
8... gxh6 {[%clk 0:02:40.4]} 9. cxd4 {[%clk 0:02:22]} 9... Bd7 {[%clk
0:02:39.4]} 10. Nc3 {[%clk 0:02:20.5]} 10... Qb6 {[%clk 0:02:32.3]} 11. Na4
{[%clk 0:02:17.1]} 11... Qb4 {[%clk 0:02:28.7]} 12. a3 {[%clk 0:02:13.1]} 12...
Qa5 {[%clk 0:02:28.4]} 13. b4 {[%clk 0:02:13]} 13... Qd8 {[%clk 0:02:24.6]} 14.
Nc5 {[%clk 0:02:05.6]} 14... Bxc5 {[%clk 0:02:12.7]} 15. dxc5 {[%clk 0:02:03]}
15... Qc7 {[%clk 0:02:08.7]} 16. Re1 {[%clk 0:01:59.8]} 16... Ke7 {[%clk
0:01:59.8]} 17. Qd2 {[%clk 0:01:58.6]} 17... Rag8 {[%clk 0:01:56]} 18. Qxh6
{[%clk 0:01:57.7]} 18... Ke8 {[%clk 0:01:12.7]} 19. Rad1 {[%clk 0:01:36.1]}
19... Ne7 {[%clk 0:01:03.9]} 20. Nd4 {[%clk 0:01:35.9]} 20... Rg4 {[%clk
0:00:55.3]} 21. Be2 {[%clk 0:01:34.6]} 21... Rg6 {[%clk 0:00:53.4]} 22. Qf4
{[%clk 0:01:29.5]} 22... Rhg8 {[%clk 0:00:51.7]} 23. g3 {[%clk 0:01:29.4]} 23...
Rg5 {[%clk 0:00:50.2]} 24. h4 {[%clk 0:01:20.5]} 24... Rxe5 {[%clk 0:00:25.4]}
25. Nb5 {[%clk 0:01:19.4]} 25... Qb8 {[%clk 0:00:07.8]} 26. Nd6+ {[%clk
0:01:17.7]} 26... Kd8 {[%clk 0:00:07.9]} 27. Qxe5 {[%clk 0:01:15.7]} 27... Ng6
{[%clk 0:00:08.1]} 28. Nxf7+ {[%clk 0:01:13.3]} 28... Ke7 {[%clk 0:00:08.4]} 29.
Qxb8 {[%clk 0:01:13]} 29... Rxb8 {[%clk 0:00:08.5]} 30. Ng5 {[%clk 0:01:11.8]}
30... e5 {[%clk 0:00:08.5]} 31. Bh5 {[%clk 0:01:09.9]} 31... Kf6 {[%clk
0:00:07.2]} 32. Bxg6 {[%clk 0:01:08.5]} 32... hxg6 {[%clk 0:00:07.1]} 33. Rxd5
{[%clk 0:01:08.4]} 33... Bc6 {[%clk 0:00:06.7]} 34. Rdxe5 {[%clk 0:01:08.1]} 1-0

[Event "*** Titled Tuesday Blitz"]
[Site "Chess.com"]
[Date "2020.05.12"]
[Round "3"]
[White "bmt011"]
[Black "Saloni1299"]
[Result "1/2-1/2"]
[WhiteElo "2053"]
[BlackElo "2307"]
[TimeControl "180+1"]
[EndTime "10:27:21 PDT"]
[Termination "Game drawn - insufficient material"]

1. d4 {[%clk 0:03:00.9]} 1... Nf6 {[%clk 0:02:58.9]} 2. Bf4 {[%clk 0:03:00.2]}
2... g6 {[%clk 0:02:57.2]} 3. f3 {[%clk 0:03:00.4]} 3... d6 {[%clk 0:02:55.1]}
4. e4 {[%clk 0:03:00.4]} 4... Bg7 {[%clk 0:02:55.7]} 5. Qd2 {[%clk 0:03:00.3]}
5... O-O {[%clk 0:02:46.6]} 6. Nc3 {[%clk 0:02:57.9]} 6... c5 {[%clk 0:02:46.4]}
7. dxc5 {[%clk 0:02:52.2]} 7... dxc5 {[%clk 0:02:47.3]} 8. Qxd8 {[%clk
0:02:50.3]} 8... Rxd8 {[%clk 0:02:48.2]} 9. Rd1 {[%clk 0:02:49.9]} 9... Rxd1+
{[%clk 0:02:44.7]} 10. Kxd1 {[%clk 0:02:49.1]} 10... Nc6 {[%clk 0:02:42]} 11.
Bc4 {[%clk 0:02:48.7]} 11... a6 {[%clk 0:02:40.7]} 12. Nge2 {[%clk 0:02:48.2]}
12... b5 {[%clk 0:02:40.5]} 13. Bd5 {[%clk 0:02:48.3]} 13... Nxd5 {[%clk
0:02:38.9]} 14. Nxd5 {[%clk 0:02:48.7]} 14... Be6 {[%clk 0:02:32.7]} 15. c3
{[%clk 0:01:53.9]} 15... Bxd5 {[%clk 0:02:31]} 16. exd5 {[%clk 0:01:53.2]} 16...
Rd8 {[%clk 0:02:31.6]} 17. d6 {[%clk 0:01:46.3]} 17... e5 {[%clk 0:02:31.5]} 18.
Be3 {[%clk 0:01:44.6]} 18... Rxd6+ {[%clk 0:02:31.5]} 19. Kc2 {[%clk 0:01:45.1]}
19... c4 {[%clk 0:02:31.5]} 20. Rd1 {[%clk 0:01:37.2]} 20... Rxd1 {[%clk
0:02:31.2]} 21. Kxd1 {[%clk 0:01:37.8]} 21... f5 {[%clk 0:02:31.7]} 22. Bb6
{[%clk 0:01:35.9]} 22... Kf7 {[%clk 0:02:31.8]} 23. g4 {[%clk 0:01:31.7]} 23...
Ke6 {[%clk 0:02:31.7]} 24. Ng3 {[%clk 0:01:29.5]} 24... Bf8 {[%clk 0:02:27.4]}
25. Ke2 {[%clk 0:01:27.9]} 25... Be7 {[%clk 0:02:23.3]} 26. h3 {[%clk 0:01:13]}
26... b4 {[%clk 0:02:18.7]} 27. Kd2 {[%clk 0:01:06.8]} 27... Bh4 {[%clk
0:02:10.8]} 28. Nf1 {[%clk 0:01:04.3]} 28... e4 {[%clk 0:02:03.5]} 29. fxe4
{[%clk 0:01:02.2]} 29... fxe4 {[%clk 0:02:04.4]} 30. Ke3 {[%clk 0:01:02.5]}
30... Kd5 {[%clk 0:02:01.9]} 31. Kf4 {[%clk 0:00:59.6]} 31... h6 {[%clk
0:01:56.6]} 32. Ne3+ {[%clk 0:00:59.9]} 32... Ke6 {[%clk 0:01:51.5]} 33. Nxc4
{[%clk 0:00:55.4]} 33... bxc3 {[%clk 0:01:51.3]} 34. bxc3 {[%clk 0:00:54.9]}
34... Kd5 {[%clk 0:01:45.3]} 35. Ne3+ {[%clk 0:00:53]} 35... Ke6 {[%clk
0:01:45.4]} 36. Kxe4 {[%clk 0:00:53.5]} 36... Ne5 {[%clk 0:01:45.5]} 37. c4
{[%clk 0:00:50.4]} 37... Bf2 {[%clk 0:01:44.6]} 38. a4 {[%clk 0:00:47.7]} 38...
Bxe3 {[%clk 0:01:42.4]} 39. Bxe3 {[%clk 0:00:47.8]} 39... Nxc4 {[%clk
0:01:42.5]} 40. Bxh6 {[%clk 0:00:47]} 40... Nb6 {[%clk 0:01:42.6]} 41. a5 {[%clk
0:00:46.1]} 41... Nc4 {[%clk 0:01:42.7]} 42. Kf4 {[%clk 0:00:43.3]} 42... Nxa5
{[%clk 0:01:41.9]} 43. Kg5 {[%clk 0:00:43.8]} 43... Kf7 {[%clk 0:01:41.2]} 44.
h4 {[%clk 0:00:44.3]} 44... Nc4 {[%clk 0:01:40.3]} 45. h5 {[%clk 0:00:44]} 45...
Ne5 {[%clk 0:01:36.4]} 46. Kf4 {[%clk 0:00:33.7]} 46... Nxg4 {[%clk 0:01:32.1]}
47. Kxg4 {[%clk 0:00:33.4]} 47... gxh5+ {[%clk 0:01:32.6]} 48. Kxh5 {[%clk
0:00:33.8]} 48... Ke6 {[%clk 0:01:32.5]} 49. Kg4 {[%clk 0:00:33.3]} 49... Kd5
{[%clk 0:01:33]} 50. Kf3 {[%clk 0:00:33.9]} 50... Kc4 {[%clk 0:01:33.6]} 51. Ke2
{[%clk 0:00:34.5]} 51... Kb3 {[%clk 0:01:32.9]} 52. Kd1 {[%clk 0:00:34.5]} 52...
Kb2 {[%clk 0:01:33.4]} 53. Bg7+ {[%clk 0:00:33.8]} 53... Kb1 {[%clk 0:01:32.8]}
54. Bc3 {[%clk 0:00:34]} 54... a5 {[%clk 0:01:32.9]} 55. Bxa5 {[%clk 0:00:33.3]}
1/2-1/2

[Event "*** Titled Tuesday Blitz"]
[Site "Chess.com"]
[Date "2020.05.12"]
[Round "3"]
[White "Quiet_Desperation"]
[Black "nitpicker"]
[Result "1-0"]
[WhiteElo "1894"]
[BlackElo "2240"]
[TimeControl "180+1"]
[EndTime "10:27:22 PDT"]
[Termination "Quiet_Desperation won by resignation"]

1. e4 {[%clk 0:03:00.9]} 1... c5 {[%clk 0:02:57.6]} 2. d4 {[%clk 0:03:00.9]}
2... cxd4 {[%clk 0:02:56.2]} 3. c3 {[%clk 0:03:01]} 3... d5 {[%clk 0:02:54.4]}
4. exd5 {[%clk 0:03:00.9]} 4... Qxd5 {[%clk 0:02:52.8]} 5. cxd4 {[%clk
0:03:01.4]} 5... Nf6 {[%clk 0:02:48.6]} 6. Nc3 {[%clk 0:03:00.2]} 6... Qd6
{[%clk 0:02:44.3]} 7. Nf3 {[%clk 0:03:00.4]} 7... a6 {[%clk 0:02:43]} 8. Bc4
{[%clk 0:03:00.1]} 8... e6 {[%clk 0:02:37.3]} 9. O-O {[%clk 0:02:58.3]} 9... Be7
{[%clk 0:02:36.5]} 10. Ne5 {[%clk 0:02:58.6]} 10... O-O {[%clk 0:02:34.7]} 11.
Bf4 {[%clk 0:02:58.6]} 11... Qd8 {[%clk 0:02:29.3]} 12. Re1 {[%clk 0:02:54.6]}
12... b5 {[%clk 0:02:29]} 13. Bb3 {[%clk 0:02:54.2]} 13... Bb7 {[%clk
0:02:28.6]} 14. a3 {[%clk 0:02:43]} 14... Nc6 {[%clk 0:02:28]} 15. Nxc6 {[%clk
0:02:38.1]} 15... Bxc6 {[%clk 0:02:27.5]} 16. Rc1 {[%clk 0:02:33]} 16... Rc8
{[%clk 0:02:25.6]} 17. Be5 {[%clk 0:02:16.1]} 17... Re8 {[%clk 0:02:24.6]} 18.
Re3 {[%clk 0:02:13.9]} 18... Qb6 {[%clk 0:02:21.9]} 19. Rg3 {[%clk 0:02:12.7]}
19... Qb7 {[%clk 0:02:17.4]} 20. Qd2 {[%clk 0:02:10.1]} 20... Kh8 {[%clk
0:01:41]} 21. Rxg7 {[%clk 0:01:47.4]} 21... Kxg7 {[%clk 0:01:21.7]} 22. Qg5+
{[%clk 0:01:44.3]} 22... Kf8 {[%clk 0:01:20.9]} 23. Qh6+ {[%clk 0:01:17.8]}
23... Kg8 {[%clk 0:01:20.6]} 24. Re1 {[%clk 0:01:04.7]} 24... Bxg2 {[%clk
0:00:43.2]} 25. Re3 {[%clk 0:00:56.9]} 25... Bf3 {[%clk 0:00:42.9]} 26. d5
{[%clk 0:00:50.1]} 26... Bg4 {[%clk 0:00:24.3]} 27. Rg3 {[%clk 0:00:41.6]} 27...
Rxc3 {[%clk 0:00:11.4]} 28. Rxg4+ {[%clk 0:00:39.9]} 1-0

[Event "*** Titled Tuesday Blitz"]
[Site "Chess.com"]
[Date "2020.05.12"]
[Round "3"]
[White "Warre"]
[Black "ManuDavid2910"]
[Result "0-1"]
[WhiteElo "2475"]
[BlackElo "2715"]
[TimeControl "180+1"]
[EndTime "10:27:23 PDT"]
[Termination "ManuDavid2910 won by resignation"]

1. d4 {[%clk 0:03:00.9]} 1... Nf6 {[%clk 0:02:59.8]} 2. c4 {[%clk 0:03:01]} 2...
e6 {[%clk 0:03:00.7]} 3. Nf3 {[%clk 0:03:01]} 3... d5 {[%clk 0:03:01.6]} 4. g3
{[%clk 0:03:01.1]} 4... c5 {[%clk 0:03:01.9]} 5. Bg2 {[%clk 0:03:00.7]} 5... Nc6
{[%clk 0:03:02.2]} 6. O-O {[%clk 0:03:00.3]} 6... cxd4 {[%clk 0:03:02.4]} 7.
Nxd4 {[%clk 0:03:00.2]} 7... Bc5 {[%clk 0:03:02.8]} 8. Nb3 {[%clk 0:02:51.7]}
8... Be7 {[%clk 0:02:59.1]} 9. cxd5 {[%clk 0:02:51.3]} 9... exd5 {[%clk
0:03:00]} 10. Nc3 {[%clk 0:02:49.9]} 10... Be6 {[%clk 0:03:00.3]} 11. Bg5 {[%clk
0:02:44.4]} 11... O-O {[%clk 0:03:00.4]} 12. Nd4 {[%clk 0:02:42.6]} 12... Bc5
{[%clk 0:02:56.7]} 13. Nxc6 {[%clk 0:02:31.9]} 13... bxc6 {[%clk 0:02:56.2]} 14.
Rc1 {[%clk 0:02:31.7]} 14... Bb6 {[%clk 0:02:55.9]} 15. Na4 {[%clk 0:02:29]}
15... Rc8 {[%clk 0:02:51.9]} 16. Nc5 {[%clk 0:02:26.6]} 16... Qe7 {[%clk
0:02:50.3]} 17. Qc2 {[%clk 0:02:16.5]} 17... Bg4 {[%clk 0:02:46.1]} 18. Rfe1
{[%clk 0:02:12.8]} 18... Rfe8 {[%clk 0:02:44.6]} 19. e4 {[%clk 0:02:03.1]} 19...
h6 {[%clk 0:01:29.9]} 20. Bxf6 {[%clk 0:02:02.3]} 20... Qxf6 {[%clk 0:01:30.8]}
21. exd5 {[%clk 0:01:25.7]} 21... Rxe1+ {[%clk 0:01:29.6]} 22. Rxe1 {[%clk
0:01:22.2]} 22... cxd5 {[%clk 0:01:30.5]} 23. b4 {[%clk 0:01:05.2]} 23... Qd4
{[%clk 0:01:29.5]} 24. a3 {[%clk 0:00:59.5]} 24... a5 {[%clk 0:01:27.2]} 25. Rb1
{[%clk 0:00:37.5]} 25... Bh5 {[%clk 0:01:24.2]} 26. Qb3 {[%clk 0:00:25.8]} 26...
Rd8 {[%clk 0:01:11.8]} 27. Rc1 {[%clk 0:00:23.6]} 27... Qd2 {[%clk 0:01:06.5]}
28. Qc3 {[%clk 0:00:22.1]} 28... Qg5 {[%clk 0:01:04.1]} 29. bxa5 {[%clk
0:00:20.5]} 29... Bxa5 {[%clk 0:01:04.4]} 30. Qc2 {[%clk 0:00:20.6]} 30... Bg6
{[%clk 0:01:03.4]} 31. Qb2 {[%clk 0:00:20]} 31... d4 {[%clk 0:01:01.7]} 32. Nb3
{[%clk 0:00:19.8]} 32... Bc3 {[%clk 0:01:01]} 33. Qa2 {[%clk 0:00:18]} 33... Rb8
{[%clk 0:00:58.1]} 34. Nc5 {[%clk 0:00:17.5]} 34... Qxc1+ {[%clk 0:00:57.5]} 0-1

[Event "*** Titled Tuesday Blitz"]
[Site "Chess.com"]
[Date "2020.05.12"]
[Round "3"]
[White "ZeZacarias"]
[Black "albano87"]
[Result "1-0"]
[WhiteElo "2058"]
[BlackElo "2298"]
[TimeControl "180+1"]
[EndTime "10:27:23 PDT"]
[Termination "ZeZacarias won by resignation"]

1. d4 {[%clk 0:03:00.9]} 1... d5 {[%clk 0:02:59.9]} 2. c4 {[%clk 0:03:00.5]}
2... c6 {[%clk 0:03:00]} 3. Nc3 {[%clk 0:03:00.5]} 3... Nf6 {[%clk 0:02:59.7]}
4. cxd5 {[%clk 0:02:57.1]} 4... cxd5 {[%clk 0:02:59.3]} 5. Bf4 {[%clk
0:02:57.7]} 5... Nc6 {[%clk 0:02:52.4]} 6. e3 {[%clk 0:02:55.5]} 6... a6 {[%clk
0:02:35.7]} 7. Nf3 {[%clk 0:02:52.5]} 7... Bf5 {[%clk 0:02:29.9]} 8. Bd3 {[%clk
0:02:50.3]} 8... Bg6 {[%clk 0:02:29.1]} 9. Bxg6 {[%clk 0:02:48]} 9... hxg6
{[%clk 0:02:30]} 10. O-O {[%clk 0:02:47.2]} 10... e6 {[%clk 0:02:29]} 11. h3
{[%clk 0:02:46.6]} 11... Bd6 {[%clk 0:02:26.8]} 12. Bxd6 {[%clk 0:02:45.6]}
12... Qxd6 {[%clk 0:02:25.9]} 13. Qb3 {[%clk 0:02:43.9]} 13... b5 {[%clk
0:02:23.4]} 14. Rac1 {[%clk 0:02:43.5]} 14... O-O {[%clk 0:01:56.7]} 15. a4
{[%clk 0:02:21.1]} 15... b4 {[%clk 0:01:52.7]} 16. Nb1 {[%clk 0:02:17.9]} 16...
Rfc8 {[%clk 0:01:41.8]} 17. Nbd2 {[%clk 0:02:11]} 17... Na5 {[%clk 0:01:34.3]}
18. Qd3 {[%clk 0:02:08.1]} 18... Rc6 {[%clk 0:01:09.2]} 19. Ne5 {[%clk
0:02:07.3]} 19... Rxc1 {[%clk 0:01:05.5]} 20. Rxc1 {[%clk 0:02:08.2]} 20... Nd7
{[%clk 0:01:05]} 21. Ndf3 {[%clk 0:01:51]} 21... Nb6 {[%clk 0:00:48.1]} 22. Ng5
{[%clk 0:00:56.4]} 22... Qe7 {[%clk 0:00:23.3]} 23. Nexf7 {[%clk 0:00:48.6]}
23... Nxa4 {[%clk 0:00:17.9]} 24. Qxg6 {[%clk 0:00:48]} 24... Qf6 {[%clk
0:00:15.2]} 25. Qh7+ {[%clk 0:00:47.5]} 25... Kf8 {[%clk 0:00:15.5]} 26. Qh8+
{[%clk 0:00:38.5]} 26... Ke7 {[%clk 0:00:15.7]} 27. Qxa8 {[%clk 0:00:38.3]} 1-0

[Event "*** Titled Tuesday Blitz"]
[Site "Chess.com"]
[Date "2020.05.12"]
[Round "3"]
[White "Gordima"]
[Black "Bathory44"]
[Result "1-0"]
[WhiteElo "2770"]
[BlackElo "2583"]
[TimeControl "180+1"]
[EndTime "10:27:24 PDT"]
[Termination "Gordima won by resignation"]

1. d4 {[%clk 0:03:00.9]} 1... Nf6 {[%clk 0:02:59.2]} 2. c4 {[%clk 0:03:01.5]}
2... g6 {[%clk 0:02:59.7]} 3. Nc3 {[%clk 0:03:02]} 3... Bg7 {[%clk 0:03:00.2]}
4. e4 {[%clk 0:03:02.2]} 4... d6 {[%clk 0:03:00.7]} 5. h3 {[%clk 0:03:02.8]}
5... O-O {[%clk 0:03:00.6]} 6. Be3 {[%clk 0:03:03.4]} 6... e5 {[%clk 0:02:59.3]}
7. d5 {[%clk 0:03:03.7]} 7... Na6 {[%clk 0:02:59.5]} 8. Nf3 {[%clk 0:03:03.7]}
8... Nc5 {[%clk 0:02:59.6]} 9. Nd2 {[%clk 0:03:03.7]} 9... a5 {[%clk 0:02:56.5]}
10. g4 {[%clk 0:03:03.8]} 10... c6 {[%clk 0:02:56.1]} 11. Be2 {[%clk 0:03:03.9]}
11... Bd7 {[%clk 0:02:52.8]} 12. h4 {[%clk 0:02:57.2]} 12... cxd5 {[%clk
0:02:52.3]} 13. cxd5 {[%clk 0:02:57.1]} 13... a4 {[%clk 0:02:51.8]} 14. h5
{[%clk 0:02:52.1]} 14... Qa5 {[%clk 0:02:44]} 15. Nc4 {[%clk 0:02:20.5]} 15...
Qc7 {[%clk 0:02:43.4]} 16. f3 {[%clk 0:02:17]} 16... b5 {[%clk 0:02:40.3]} 17.
Nd2 {[%clk 0:02:15.8]} 17... b4 {[%clk 0:02:39]} 18. Ncb1 {[%clk 0:02:09.7]}
18... Rfb8 {[%clk 0:02:30.3]} 19. Nc4 {[%clk 0:02:07.6]} 19... Bb5 {[%clk
0:02:02.4]} 20. Nbd2 {[%clk 0:02:07.2]} 20... Qe7 {[%clk 0:01:58.9]} 21. Rc1
{[%clk 0:02:01.8]} 21... Nfd7 {[%clk 0:01:58.8]} 22. g5 {[%clk 0:01:51.4]} 22...
Rc8 {[%clk 0:01:53.6]} 23. Kf2 {[%clk 0:01:44.3]} 23... Rc7 {[%clk 0:01:46.4]}
24. Qf1 {[%clk 0:01:34.6]} 24... Bxc4 {[%clk 0:01:25.4]} 25. Nxc4 {[%clk
0:01:30.3]} 25... Rac8 {[%clk 0:01:25.5]} 26. Qh3 {[%clk 0:01:27.6]} 26... b3
{[%clk 0:01:15.5]} 27. a3 {[%clk 0:01:27.4]} 27... Nf8 {[%clk 0:00:52.6]} 28.
Rc3 {[%clk 0:01:23.7]} 28... f6 {[%clk 0:00:46.1]} 29. hxg6 {[%clk 0:01:16.7]}
29... hxg6 {[%clk 0:00:45.3]} 30. gxf6 {[%clk 0:01:15.9]} 30... Qxf6 {[%clk
0:00:46.2]} 31. Qg4 {[%clk 0:01:11.8]} 31... Nh7 {[%clk 0:00:36.8]} 32. Rcc1
{[%clk 0:01:07.9]} 32... Rf8 {[%clk 0:00:35.3]} 33. Rcg1 {[%clk 0:01:02.7]}
33... Rff7 {[%clk 0:00:24.4]} 34. Ke1 {[%clk 0:00:58.6]} 34... Nf8 {[%clk
0:00:23.5]} 35. Bg5 {[%clk 0:00:53]} 1-0